[Event "*** SCC Grand Prix: Titled Tuesday Blitz"]
[Site "Chess.com"]
[Date "2020.06.02"]
[Round "2"]
[White "124chess"]
[Black "ENEASZ"]
[Result "1-0"]
[WhiteElo "2748"]
[BlackElo "2503"]
[TimeControl "180+1"]
[EndTime "10:18:10 PDT"]
[Termination "124chess won on time"]

1. d4 {[%clk 0:03:00.9]} 1... d5 {[%clk 0:02:59.6]} 2. c4 {[%clk 0:03:00.9]}
2... e6 {[%clk 0:02:59.4]} 3. Nc3 {[%clk 0:03:00.5]} 3... Nf6 {[%clk 0:02:58.7]}
4. cxd5 {[%clk 0:03:00.4]} 4... exd5 {[%clk 0:02:56.8]} 5. Bg5 {[%clk 0:03:00]}
5... Be7 {[%clk 0:02:53.8]} 6. e3 {[%clk 0:03:00.1]} 6... c6 {[%clk 0:02:53.4]}
7. Bd3 {[%clk 0:03:00.5]} 7... Nbd7 {[%clk 0:02:52.8]} 8. Nf3 {[%clk 0:03:00.8]}
8... Nh5 {[%clk 0:02:51.2]} 9. Bxe7 {[%clk 0:03:01]} 9... Qxe7 {[%clk
0:02:52.1]} 10. O-O {[%clk 0:03:01.6]} 10... O-O {[%clk 0:02:50.3]} 11. Qb1
{[%clk 0:03:01.3]} 11... Nhf6 {[%clk 0:02:49.7]} 12. b4 {[%clk 0:03:02]} 12...
a6 {[%clk 0:02:35.5]} 13. a4 {[%clk 0:03:01.7]} 13... Nb6 {[%clk 0:02:35.7]} 14.
b5 {[%clk 0:02:59.1]} 14... cxb5 {[%clk 0:02:36.6]} 15. axb5 {[%clk 0:02:59.4]}
15... a5 {[%clk 0:02:37.1]} 16. Rc1 {[%clk 0:02:47.1]} 16... Be6 {[%clk
0:02:34.8]} 17. Ne2 {[%clk 0:02:45.6]} 17... Bg4 {[%clk 0:02:23.9]} 18. Ne5
{[%clk 0:02:42]} 18... Bxe2 {[%clk 0:02:23.5]} 19. Bxe2 {[%clk 0:02:42.9]} 19...
Ne4 {[%clk 0:02:24]} 20. Bd3 {[%clk 0:02:39.4]} 20... Nf6 {[%clk 0:02:08.3]} 21.
Bf5 {[%clk 0:02:39.1]} 21... g6 {[%clk 0:02:06.7]} 22. Bh3 {[%clk 0:02:38.9]}
22... Ne4 {[%clk 0:02:05.4]} 23. Qc2 {[%clk 0:02:28.2]} 23... Qf6 {[%clk
0:01:46.9]} 24. f3 {[%clk 0:02:18.2]} 24... Ng5 {[%clk 0:01:34.9]} 25. Bd7
{[%clk 0:02:10.4]} 25... Rfd8 {[%clk 0:01:26.9]} 26. Qc7 {[%clk 0:02:04.1]}
26... Nxd7 {[%clk 0:00:46]} 27. Nxd7 {[%clk 0:02:03.2]} 27... Nxf3+ {[%clk
0:00:46.2]} 28. gxf3 {[%clk 0:01:48.7]} 28... Qxf3 {[%clk 0:00:47.1]} 29. Ne5
{[%clk 0:01:18.6]} 29... Qxe3+ {[%clk 0:00:47.1]} 30. Kg2 {[%clk 0:01:19.1]}
30... Qe2+ {[%clk 0:00:44.2]} 31. Kg3 {[%clk 0:01:16.5]} 31... Qe3+ {[%clk
0:00:38.3]} 32. Nf3 {[%clk 0:01:13.2]} 32... h5 {[%clk 0:00:36.3]} 33. Qf4
{[%clk 0:01:09.1]} 33... Qxf4+ {[%clk 0:00:27.8]} 34. Kxf4 {[%clk 0:01:09.2]}
34... f6 {[%clk 0:00:26.8]} 35. Rc7 {[%clk 0:01:03.9]} 35... b6 {[%clk
0:00:26.9]} 36. Rc6 {[%clk 0:01:03.3]} 36... Kg7 {[%clk 0:00:27.2]} 37. Rxb6
{[%clk 0:01:03]} 37... Re8 {[%clk 0:00:27.6]} 38. Ra6 {[%clk 0:00:59.8]} 38...
Rac8 {[%clk 0:00:26.9]} 39. R6xa5 {[%clk 0:00:50.5]} 39... Re4+ {[%clk
0:00:24.2]} 40. Kg3 {[%clk 0:00:50.3]} 40... Rg4+ {[%clk 0:00:25.1]} 41. Kh3
{[%clk 0:00:44.7]} 41... g5 {[%clk 0:00:18.5]} 42. Ra7+ {[%clk 0:00:36.2]} 42...
Kg6 {[%clk 0:00:18.2]} 43. R7a6 {[%clk 0:00:36.8]} 43... Rc3 {[%clk 0:00:16.9]}
44. R6a3 {[%clk 0:00:36.2]} 44... Rxa3 {[%clk 0:00:17.2]} 45. Rxa3 {[%clk
0:00:35.8]} 45... Re4 {[%clk 0:00:18.1]} 46. Rb3 {[%clk 0:00:28.6]} 46... Re2
{[%clk 0:00:17.5]} 47. b6 {[%clk 0:00:24.3]} 47... g4+ {[%clk 0:00:12.1]} 48.
Kg3 {[%clk 0:00:24.4]} 48... gxf3 {[%clk 0:00:11.3]} 49. b7 {[%clk 0:00:22]}
49... f2 {[%clk 0:00:05.8]} 50. Kg2 {[%clk 0:00:22.2]} 1-0

[Event "*** SCC Grand Prix: Titled Tuesday Blitz"]
[Site "Chess.com"]
[Date "2020.06.02"]
[Round "2"]
[White "MilanJeremic"]
[Black "djano"]
[Result "1-0"]
[WhiteElo "2252"]
[BlackElo "2434"]
[TimeControl "180+1"]
[EndTime "10:18:10 PDT"]
[Termination "MilanJeremic won by checkmate"]

1. d4 {[%clk 0:03:00.9]} 1... Nf6 {[%clk 0:02:59.6]} 2. Nf3 {[%clk 0:03:00.5]}
2... e6 {[%clk 0:02:55.8]} 3. g3 {[%clk 0:02:59.6]} 3... c5 {[%clk 0:02:55.6]}
4. c3 {[%clk 0:02:59.5]} 4... b6 {[%clk 0:02:55]} 5. Bg2 {[%clk 0:02:59.3]} 5...
Bb7 {[%clk 0:02:55.3]} 6. O-O {[%clk 0:02:59]} 6... Be7 {[%clk 0:02:55.1]} 7.
Bg5 {[%clk 0:02:58.1]} 7... O-O {[%clk 0:02:54.6]} 8. Bxf6 {[%clk 0:02:57.3]}
8... Bxf6 {[%clk 0:02:54.5]} 9. e3 {[%clk 0:02:57.1]} 9... d6 {[%clk 0:02:53.9]}
10. Nbd2 {[%clk 0:02:56.9]} 10... Nd7 {[%clk 0:02:53.8]} 11. Rc1 {[%clk
0:02:55.4]} 11... a6 {[%clk 0:02:49.8]} 12. h4 {[%clk 0:02:54.8]} 12... b5
{[%clk 0:02:48.3]} 13. a3 {[%clk 0:02:53.2]} 13... Rb8 {[%clk 0:02:46.7]} 14.
Ne1 {[%clk 0:02:52.2]} 14... Qb6 {[%clk 0:02:43.9]} 15. Ne4 {[%clk 0:02:48.8]}
15... Be7 {[%clk 0:02:42.2]} 16. dxc5 {[%clk 0:02:43.4]} 16... Nxc5 {[%clk
0:02:40.1]} 17. Nxc5 {[%clk 0:02:37.3]} 17... dxc5 {[%clk 0:02:40.6]} 18. Bxb7
{[%clk 0:02:35.1]} 18... Qxb7 {[%clk 0:02:39]} 19. Qf3 {[%clk 0:02:33.8]} 19...
Qb6 {[%clk 0:02:35]} 20. Rd1 {[%clk 0:02:32.8]} 20... Rfd8 {[%clk 0:02:34.4]}
21. Ng2 {[%clk 0:02:32]} 21... b4 {[%clk 0:02:32.3]} 22. axb4 {[%clk 0:02:30.4]}
22... cxb4 {[%clk 0:02:32.7]} 23. Rxd8+ {[%clk 0:02:23.8]} 23... Rxd8 {[%clk
0:02:30.1]} 24. Rd1 {[%clk 0:02:22.9]} 24... b3 {[%clk 0:02:13.7]} 25. Rxd8+
{[%clk 0:02:17]} 25... Bxd8 {[%clk 0:02:14.6]} 26. Nf4 {[%clk 0:02:12.4]} 26...
g6 {[%clk 0:02:09.9]} 27. Qa8 {[%clk 0:02:08.7]} 27... Kg7 {[%clk 0:02:02.4]}
28. h5 {[%clk 0:02:07.1]} 28... Bg5 {[%clk 0:02:00.3]} 29. hxg6 {[%clk
0:01:56.1]} 29... hxg6 {[%clk 0:02:00]} 30. Ne2 {[%clk 0:01:43.2]} 30... e5
{[%clk 0:01:51.5]} 31. Qd5 {[%clk 0:01:38.2]} 31... Bf6 {[%clk 0:01:44.2]} 32.
Nc1 {[%clk 0:01:35.8]} 32... a5 {[%clk 0:01:41.2]} 33. Qxb3 {[%clk 0:01:34.6]}
33... Qd6 {[%clk 0:01:39.1]} 34. Qc2 {[%clk 0:01:33.1]} 34... Qd5 {[%clk
0:01:36.9]} 35. c4 {[%clk 0:01:23.1]} 35... Qc6 {[%clk 0:01:27.6]} 36. b3 {[%clk
0:01:21.5]} 36... e4 {[%clk 0:01:21.1]} 37. Ne2 {[%clk 0:01:18.5]} 37... Be5
{[%clk 0:01:16.7]} 38. Kg2 {[%clk 0:01:13.6]} 38... f5 {[%clk 0:01:15.6]} 39.
Nc3 {[%clk 0:01:08.1]} 39... Qf6 {[%clk 0:01:08.2]} 40. Nd5 {[%clk 0:01:06.5]}
40... Qc6 {[%clk 0:01:08.2]} 41. Qa2 {[%clk 0:01:03]} 41... Qc5 {[%clk
0:01:07.5]} 42. Qa4 {[%clk 0:01:00.9]} 42... Qa7 {[%clk 0:01:03.3]} 43. Qc6
{[%clk 0:00:56.1]} 43... Qb8 {[%clk 0:00:58]} 44. Qd7+ {[%clk 0:00:51.5]} 44...
Kh6 {[%clk 0:00:56]} 45. Qe7 {[%clk 0:00:39.4]} 45... Bb2 {[%clk 0:00:33.1]} 46.
Nf4 {[%clk 0:00:30.7]} 46... Be5 {[%clk 0:00:27.9]} 47. Ne6 {[%clk 0:00:29.2]}
47... g5 {[%clk 0:00:07.6]} 48. Qxg5+ {[%clk 0:00:27.9]} 48... Kh7 {[%clk
0:00:07.3]} 49. Qxf5+ {[%clk 0:00:27.5]} 49... Kh6 {[%clk 0:00:07.8]} 50. g4
{[%clk 0:00:23.5]} 50... Qd6 {[%clk 0:00:05.1]} 51. Qh5# {[%clk 0:00:22.4]} 1-0

[Event "*** SCC Grand Prix: Titled Tuesday Blitz"]
[Site "Chess.com"]
[Date "2020.06.02"]
[Round "2"]
[White "IwkooO"]
[Black "Andreikka"]
[Result "0-1"]
[WhiteElo "2569"]
[BlackElo "2926"]
[TimeControl "180+1"]
[EndTime "10:18:12 PDT"]
[Termination "Andreikka won by resignation"]

1. e4 {[%clk 0:03:00.9]} 1... d5 {[%clk 0:02:59.1]} 2. exd5 {[%clk 0:03:00.8]}
2... Qxd5 {[%clk 0:03:00]} 3. Nc3 {[%clk 0:03:01]} 3... Qa5 {[%clk 0:02:59.8]}
4. d4 {[%clk 0:03:01.2]} 4... Nf6 {[%clk 0:02:59.1]} 5. Bd2 {[%clk 0:02:54.7]}
5... c6 {[%clk 0:02:56.9]} 6. Nf3 {[%clk 0:02:52.5]} 6... Bf5 {[%clk 0:02:54.7]}
7. Bc4 {[%clk 0:02:48.9]} 7... e6 {[%clk 0:02:54.2]} 8. Qe2 {[%clk 0:02:47.9]}
8... Nbd7 {[%clk 0:02:48.8]} 9. O-O-O {[%clk 0:02:33.4]} 9... Qc7 {[%clk
0:02:49.2]} 10. Ne5 {[%clk 0:02:27.5]} 10... h5 {[%clk 0:02:15]} 11. Kb1 {[%clk
0:01:38.4]} 11... Bd6 {[%clk 0:02:06]} 12. Rhe1 {[%clk 0:01:38.2]} 12... Nb6
{[%clk 0:01:57.5]} 13. Bb3 {[%clk 0:01:34.6]} 13... O-O-O {[%clk 0:01:54.6]} 14.
h3 {[%clk 0:01:28.7]} 14... h4 {[%clk 0:01:37.2]} 15. Bg5 {[%clk 0:01:14.3]}
15... Nbd5 {[%clk 0:01:34.1]} 16. Nxd5 {[%clk 0:01:03.4]} 16... cxd5 {[%clk
0:01:30]} 17. Ka1 {[%clk 0:00:58.9]} 17... Kb8 {[%clk 0:01:25.5]} 18. Rc1 {[%clk
0:00:53]} 18... Rc8 {[%clk 0:00:58.5]} 19. c4 {[%clk 0:00:51.7]} 19... dxc4
{[%clk 0:00:55]} 20. Rxc4 {[%clk 0:00:48.1]} 20... Qe7 {[%clk 0:00:54.3]} 21.
Rec1 {[%clk 0:00:45.5]} 21... Rxc4 {[%clk 0:00:51.8]} 22. Qxc4 {[%clk
0:00:45.7]} 22... Be4 {[%clk 0:00:50.9]} 23. f3 {[%clk 0:00:43.1]} 23... Bd5
{[%clk 0:00:48.6]} 24. Qc2 {[%clk 0:00:43.3]} 24... Bxb3 {[%clk 0:00:46]} 25.
Qxb3 {[%clk 0:00:44.2]} 25... Ka8 {[%clk 0:00:44.5]} 26. a3 {[%clk 0:00:41.2]}
26... Qe8 {[%clk 0:00:43.4]} 27. Nc4 {[%clk 0:00:19.3]} 27... Bc7 {[%clk
0:00:42.6]} 28. Nd2 {[%clk 0:00:12.9]} 28... Bb6 {[%clk 0:00:37.9]} 29. Bxf6
{[%clk 0:00:09.6]} 29... gxf6 {[%clk 0:00:37.6]} 30. d5 {[%clk 0:00:10.5]} 30...
exd5 {[%clk 0:00:22.7]} 31. Qxd5 {[%clk 0:00:11.4]} 31... Qe3 {[%clk 0:00:22.6]}
32. Rc2 {[%clk 0:00:06.5]} 32... Qg1+ {[%clk 0:00:20.5]} 33. Ka2 {[%clk
0:00:07]} 33... Qxg2 {[%clk 0:00:21]} 34. Qe4 {[%clk 0:00:07.1]} 34... Qxh3
{[%clk 0:00:18.4]} 35. Nc4 {[%clk 0:00:07.6]} 35... Qe6 {[%clk 0:00:18.6]} 36.
Qd3 {[%clk 0:00:03.1]} 36... h3 {[%clk 0:00:17.3]} 37. Rh2 {[%clk 0:00:03.6]}
37... Bc7 {[%clk 0:00:17.1]} 38. Rh1 {[%clk 0:00:04]} 38... h2 {[%clk
0:00:17.3]} 39. a4 {[%clk 0:00:03.7]} 39... Rd8 {[%clk 0:00:16.9]} 40. Qb3
{[%clk 0:00:03.6]} 40... Rd4 {[%clk 0:00:16.6]} 41. Na3 {[%clk 0:00:01.2]} 41...
Rxa4 {[%clk 0:00:16.5]} 42. Qxe6 {[%clk 0:00:01.1]} 42... fxe6 {[%clk
0:00:17.4]} 43. Kb3 {[%clk 0:00:02]} 43... Rf4 {[%clk 0:00:17.2]} 44. Nb5 {[%clk
0:00:02.4]} 44... Rxf3+ {[%clk 0:00:17.1]} 45. Kc4 {[%clk 0:00:03.3]} 45... Be5
{[%clk 0:00:17.5]} 46. Rd1 {[%clk 0:00:03.1]} 46... a6 {[%clk 0:00:14.9]} 47.
Rd8+ {[%clk 0:00:03.6]} 47... Bb8 {[%clk 0:00:15.3]} 48. Nc7+ {[%clk 0:00:04.1]}
48... Ka7 {[%clk 0:00:15.3]} 0-1

[Event "*** SCC Grand Prix: Titled Tuesday Blitz"]
[Site "Chess.com"]
[Date "2020.06.02"]
[Round "2"]
[White "Poghosyan_Suren"]
[Black "SidArun"]
[Result "1-0"]
[WhiteElo "2438"]
[BlackElo "2206"]
[TimeControl "180+1"]
[EndTime "10:18:14 PDT"]
[Termination "Poghosyan_Suren won by resignation"]

1. d4 {[%clk 0:03:00.9]} 1... Nf6 {[%clk 0:02:58.9]} 2. c4 {[%clk 0:03:00.1]}
2... e5 {[%clk 0:02:58.2]} 3. dxe5 {[%clk 0:02:58.5]} 3... Ng4 {[%clk
0:02:58.3]} 4. Nf3 {[%clk 0:02:58.8]} 4... Bc5 {[%clk 0:02:57.6]} 5. e3 {[%clk
0:02:59]} 5... Nc6 {[%clk 0:02:57.9]} 6. Nc3 {[%clk 0:02:59.2]} 6... O-O {[%clk
0:02:57.5]} 7. Be2 {[%clk 0:02:59.4]} 7... Ngxe5 {[%clk 0:02:57.5]} 8. O-O
{[%clk 0:02:56.6]} 8... Re8 {[%clk 0:02:57.7]} 9. b3 {[%clk 0:02:56.3]} 9... a5
{[%clk 0:02:58]} 10. Bb2 {[%clk 0:02:56.3]} 10... Ra6 {[%clk 0:02:58.3]} 11. Ne4
{[%clk 0:02:51]} 11... Bf8 {[%clk 0:02:52.9]} 12. Qd5 {[%clk 0:02:38.5]} 12...
d6 {[%clk 0:02:45.4]} 13. c5 {[%clk 0:02:30]} 13... Be6 {[%clk 0:02:44.8]} 14.
Qd2 {[%clk 0:02:25.5]} 14... Nxf3+ {[%clk 0:02:43.4]} 15. gxf3 {[%clk
0:02:25.1]} 15... f5 {[%clk 0:02:09.8]} 16. Ng3 {[%clk 0:02:15.9]} 16... Ra8
{[%clk 0:02:03.5]} 17. cxd6 {[%clk 0:02:12.2]} 17... Bxd6 {[%clk 0:01:59.5]} 18.
Rfd1 {[%clk 0:02:12]} 18... Qe7 {[%clk 0:01:48]} 19. f4 {[%clk 0:02:08.5]} 19...
a4 {[%clk 0:01:40.6]} 20. Bc4 {[%clk 0:02:04.4]} 20... Bxc4 {[%clk 0:01:33.7]}
21. bxc4 {[%clk 0:02:03.7]} 21... Qf7 {[%clk 0:01:33.3]} 22. Qd5 {[%clk
0:02:02.9]} 22... Ne7 {[%clk 0:01:25.8]} 23. Qxf7+ {[%clk 0:02:01.2]} 23... Kxf7
{[%clk 0:01:25.7]} 24. Rac1 {[%clk 0:01:56.2]} 24... b6 {[%clk 0:01:25.3]} 25.
Bd4 {[%clk 0:01:55.2]} 25... Rad8 {[%clk 0:01:19.7]} 26. Kf1 {[%clk 0:01:51.8]}
26... g6 {[%clk 0:01:19.9]} 27. Ke2 {[%clk 0:01:51.4]} 27... Nc6 {[%clk
0:01:19.9]} 28. Bc3 {[%clk 0:01:48.7]} 28... Bc5 {[%clk 0:01:19]} 29. Kf3 {[%clk
0:01:48.1]} 29... Ke6 {[%clk 0:00:59.4]} 30. Ne2 {[%clk 0:01:46.2]} 30... h6
{[%clk 0:00:54]} 31. Nd4+ {[%clk 0:01:43.7]} 31... Nxd4+ {[%clk 0:00:47.6]} 32.
exd4 {[%clk 0:01:43.8]} 32... Be7 {[%clk 0:00:47.4]} 33. d5+ {[%clk 0:01:40.7]}
33... Kf7 {[%clk 0:00:47.6]} 34. Be5 {[%clk 0:01:40.7]} 34... Bd6 {[%clk
0:00:46.5]} 35. Bxd6 {[%clk 0:01:40.9]} 35... Rxd6 {[%clk 0:00:46.3]} 36. c5
{[%clk 0:01:41.1]} 36... bxc5 {[%clk 0:00:45.2]} 37. Rxc5 {[%clk 0:01:42]} 37...
Re7 {[%clk 0:00:44.9]} 38. Rdc1 {[%clk 0:01:41.3]} 38... Red7 {[%clk 0:00:40]}
39. Ke3 {[%clk 0:01:18.1]} 39... Rxd5 {[%clk 0:00:38.4]} 40. Rxd5 {[%clk
0:01:17.7]} 40... Rxd5 {[%clk 0:00:38.5]} 41. Rxc7+ {[%clk 0:01:18.6]} 41... Kf6
{[%clk 0:00:38.1]} 42. Ra7 {[%clk 0:01:18.3]} 42... Rd1 {[%clk 0:00:37.6]} 43.
Ra6+ {[%clk 0:01:17]} 43... Kg7 {[%clk 0:00:37.1]} 44. Ra7+ {[%clk 0:01:17.1]}
44... Kf6 {[%clk 0:00:36.9]} 45. Ra6+ {[%clk 0:01:17]} 45... Kg7 {[%clk
0:00:37.2]} 46. Rxa4 {[%clk 0:01:17.9]} 46... Rh1 {[%clk 0:00:36.6]} 47. Ra7+
{[%clk 0:01:17.4]} 47... Kf6 {[%clk 0:00:36.3]} 48. a4 {[%clk 0:01:18.3]} 48...
Rxh2 {[%clk 0:00:36.3]} 49. a5 {[%clk 0:01:19.1]} 49... Rh1 {[%clk 0:00:36.4]}
50. a6 {[%clk 0:01:19]} 50... Ra1 {[%clk 0:00:36.5]} 51. Ra8 {[%clk 0:01:19.9]}
51... Kg7 {[%clk 0:00:36.5]} 52. Kf3 {[%clk 0:01:17.9]} 52... Ra3+ {[%clk
0:00:35.3]} 53. Kg2 {[%clk 0:01:17.8]} 53... g5 {[%clk 0:00:35.6]} 54. fxg5
{[%clk 0:01:04.6]} 54... hxg5 {[%clk 0:00:35.9]} 55. f3 {[%clk 0:01:03.7]} 55...
Ra2+ {[%clk 0:00:32]} 56. Kf1 {[%clk 0:01:02.9]} 56... Ra3 {[%clk 0:00:31]} 57.
Ke2 {[%clk 0:01:02.3]} 57... Kg6 {[%clk 0:00:29]} 58. a7 {[%clk 0:01:00.4]}
58... Kg7 {[%clk 0:00:28.9]} 59. Kf2 {[%clk 0:01:00.5]} 59... g4 {[%clk
0:00:21.7]} 60. f4 {[%clk 0:00:58.9]} 60... Ra4 {[%clk 0:00:20.3]} 61. Kg3
{[%clk 0:00:55.7]} 61... Ra3+ {[%clk 0:00:20.2]} 62. Kh4 {[%clk 0:00:55.1]}
62... Ra4 {[%clk 0:00:19.6]} 63. Kg5 {[%clk 0:00:54.5]} 63... Ra5 {[%clk
0:00:18.7]} 64. Rb8 {[%clk 0:00:50.3]} 64... Rxa7 {[%clk 0:00:18]} 65. Kxf5
{[%clk 0:00:50.7]} 65... g3 {[%clk 0:00:17.9]} 66. Rb3 {[%clk 0:00:51.6]} 66...
Kf7 {[%clk 0:00:16.9]} 67. Rxg3 {[%clk 0:00:50.7]} 67... Ra5+ {[%clk 0:00:17.8]}
68. Kg4 {[%clk 0:00:50.5]} 68... Ra1 {[%clk 0:00:17.1]} 69. Rb3 {[%clk
0:00:51.4]} 69... Rf1 {[%clk 0:00:17]} 70. Kf5 {[%clk 0:00:52]} 70... Re1 {[%clk
0:00:16.3]} 71. Rb7+ {[%clk 0:00:52.9]} 71... Re7 {[%clk 0:00:15.9]} 72. Rxe7+
{[%clk 0:00:52.4]} 72... Kxe7 {[%clk 0:00:16.2]} 73. Kg6 {[%clk 0:00:53.3]} 1-0

[Event "*** SCC Grand Prix: Titled Tuesday Blitz"]
[Site "Chess.com"]
[Date "2020.06.02"]
[Round "2"]
[White "Tomytoteph"]
[Black "Borsuk_Konstantin"]
[Result "0-1"]
[WhiteElo "2294"]
[BlackElo "2559"]
[TimeControl "180+1"]
[EndTime "10:18:16 PDT"]
[Termination "Borsuk_Konstantin won by resignation"]

1. e4 {[%clk 0:03:00.9]} 1... e6 {[%clk 0:02:58]} 2. d4 {[%clk 0:02:58.7]} 2...
d5 {[%clk 0:02:58.5]} 3. Nd2 {[%clk 0:02:57.9]} 3... Nf6 {[%clk 0:02:58]} 4. e5
{[%clk 0:02:57.3]} 4... Nfd7 {[%clk 0:02:58.3]} 5. c3 {[%clk 0:02:56.4]} 5... c5
{[%clk 0:02:57.5]} 6. f4 {[%clk 0:02:57.3]} 6... Nc6 {[%clk 0:02:48.6]} 7. Ndf3
{[%clk 0:02:56.6]} 7... cxd4 {[%clk 0:02:47.9]} 8. cxd4 {[%clk 0:02:52.4]} 8...
Bb4+ {[%clk 0:02:47.8]} 9. Bd2 {[%clk 0:02:52]} 9... Qb6 {[%clk 0:02:20.2]} 10.
Bc3 {[%clk 0:02:46.8]} 10... Bxc3+ {[%clk 0:02:10.4]} 11. bxc3 {[%clk
0:02:47.7]} 11... Qc7 {[%clk 0:02:06.1]} 12. Ne2 {[%clk 0:02:43.5]} 12... Nb6
{[%clk 0:02:04.5]} 13. h4 {[%clk 0:02:30.6]} 13... Na5 {[%clk 0:02:03.1]} 14. h5
{[%clk 0:02:29.8]} 14... h6 {[%clk 0:01:50.6]} 15. g4 {[%clk 0:02:25.9]} 15...
Bd7 {[%clk 0:01:46.2]} 16. Rc1 {[%clk 0:02:19]} 16... O-O-O {[%clk 0:01:43.2]}
17. Ng3 {[%clk 0:02:08.9]} 17... Kb8 {[%clk 0:01:42.2]} 18. Bd3 {[%clk
0:02:08.1]} 18... Nac4 {[%clk 0:01:24.5]} 19. Qe2 {[%clk 0:02:07.6]} 19... Qc6
{[%clk 0:01:16.3]} 20. O-O {[%clk 0:02:05.6]} 20... Qa4 {[%clk 0:01:16.7]} 21.
Rc2 {[%clk 0:02:01.6]} 21... a6 {[%clk 0:01:06.4]} 22. Rb1 {[%clk 0:02:00.9]}
22... Bb5 {[%clk 0:01:06.2]} 23. Nd2 {[%clk 0:01:57.3]} 23... Na3 {[%clk
0:00:58]} 24. Rxb5 {[%clk 0:01:53.5]} 24... axb5 {[%clk 0:00:48.9]} 25. Rb2
{[%clk 0:01:53.3]} 25... Nac4 {[%clk 0:00:47]} 26. Nxc4 {[%clk 0:01:52.5]} 26...
Nxc4 {[%clk 0:00:44.2]} 27. Rb4 {[%clk 0:01:51.3]} 27... Qa3 {[%clk 0:00:43.2]}
28. Qc2 {[%clk 0:01:47.4]} 28... Ne3 {[%clk 0:00:35.7]} 29. Qb1 {[%clk
0:01:40.1]} 29... Qxc3 {[%clk 0:00:31.7]} 30. Rxb5 {[%clk 0:01:38.8]} 30... Rd7
{[%clk 0:00:31.7]} 31. Ne2 {[%clk 0:01:38.8]} 31... Qd2 {[%clk 0:00:29.5]} 32.
Rb2 {[%clk 0:01:34]} 32... Qd1+ {[%clk 0:00:29.3]} 33. Qxd1 {[%clk 0:01:31.8]}
33... Nxd1 {[%clk 0:00:30.2]} 34. Rb6 {[%clk 0:01:31.6]} 34... Rc8 {[%clk
0:00:26.2]} 35. g5 {[%clk 0:01:29.2]} 35... Rc6 {[%clk 0:00:21.9]} 36. Rb3
{[%clk 0:01:26.2]} 36... Rdc7 {[%clk 0:00:19.2]} 37. f5 {[%clk 0:01:21.1]} 37...
hxg5 {[%clk 0:00:18.2]} 38. f6 {[%clk 0:01:21.2]} 38... gxf6 {[%clk 0:00:17.5]}
39. exf6 {[%clk 0:01:22.1]} 39... Ne3 {[%clk 0:00:14.8]} 40. h6 {[%clk
0:01:21.3]} 40... Nf5 {[%clk 0:00:14.2]} 41. h7 {[%clk 0:01:19.8]} 41... Rc8
{[%clk 0:00:14]} 42. Kf2 {[%clk 0:01:16.3]} 42... Rh8 {[%clk 0:00:13.7]} 43. Ng3
{[%clk 0:01:13.7]} 43... Rxh7 {[%clk 0:00:12.3]} 44. Bb5 {[%clk 0:01:06]} 44...
Rc2+ {[%clk 0:00:10.5]} 45. Ne2 {[%clk 0:01:01.7]} 45... Rh2+ {[%clk 0:00:09.2]}
46. Ke1 {[%clk 0:00:58.2]} 46... Rh4 {[%clk 0:00:06.5]} 47. Ba6 {[%clk
0:00:56.7]} 47... Nxd4 {[%clk 0:00:05.7]} 48. Nxd4 {[%clk 0:00:41.5]} 48... Rh1+
{[%clk 0:00:04.9]} 49. Bf1 {[%clk 0:00:39.9]} 49... Rc1+ {[%clk 0:00:05.4]} 50.
Kd2 {[%clk 0:00:38.6]} 50... Rcxf1 {[%clk 0:00:05.5]} 51. Nc6+ {[%clk
0:00:37.7]} 51... Kc7 {[%clk 0:00:05.7]} 52. Ne5 {[%clk 0:00:38.6]} 52... Rxf6
{[%clk 0:00:05.6]} 53. Rc3+ {[%clk 0:00:37.5]} 53... Kd6 {[%clk 0:00:05.8]} 54.
Nd3 {[%clk 0:00:36.1]} 54... Rh3 {[%clk 0:00:05.2]} 55. Rb3 {[%clk 0:00:35.2]}
55... Rff3 {[%clk 0:00:05.2]} 56. Ke2 {[%clk 0:00:31.2]} 56... Rxd3 {[%clk
0:00:05.3]} 0-1